bitfinex-derivatives/quotes_ETHF0:USTF0_20210102
["timestamp","ask_amount","ask_price","bid_price","bid_amount"]
[1609582189677,8.06580553,726.49,726.15,6.01438]
[1609582190377,6.01438,726.27,726.15,6.01438]
[1609582190577,6.01438,726.27,726.15,19.17038]
[1609582190781,3.679,726.27,726.15,6.01438]
[1609582190980,3.479,726.27,726.15,6.01438]
[1609582191180,3.479,726.27,726.26,98.5411]
[1609582192382,3.479,726.27,726.26,104.55548]
[1609582193282,3.479,726.27,726.26,6.01438]
[1609582195381,6.01438,726.56,726.26,6.01438]
[1609582196389,6.01438,726.56,726.55,6.01438]
[1609582197289,6.01438,726.56,726.46,92.4151]
[1609582200492,6.01438,726.47,726.46,92.4151]
[1609582209605,8.06890652,726.68,726.46,92.4151]
[1609582209803,8.06843848,726.69,726.46,92.4151]
[1609582210603,6.01438,726.66,726.48,6.01438]
[1609582210804,9.55038,726.66,726.48,6.01438]
[1609582212506,9.55038,726.66,726.46,92.4151]
[1609582212507,9.55038,726.66,726.56,6.01438]
[1609582216008,3.536,726.66,726.56,6.01438]
[1609582216210,8.07451037,726.84,726.56,6.01438]
[1609582216409,8.07451037,726.84,726.68,110.7197]
[1609582216609,6.01438,726.8,726.7,6.01438]
[1609582216809,10.70538,726.8,726.7,6.01438]
[1609582226821,10.70538,726.8,726.79,6.01438]
[1609582227020,10.70538,726.8,726.79,21.75828]
[1609582231227,4.691,726.8,726.79,21.75828]
[1609582231428,8.07772198,726.97,726.79,21.75828]
[1609582232030,50.72782663,727.48,726.79,21.75828]
[1609582232031,8.08061457,727.02,726.79,21.75828]
[1609582232730,8.08061457,727.02,727.01,6.01438]
[1609582232929,8.08061457,727.02,727.01,21.44898]
[1609582234432,8.08061457,727.02,727.01,6.01438]
[1609582237335,8.08618472,727.13,727.01,6.01438]
[1609582238840,6.01438,727.25,726.99,81.5943]
[1609582238841,8.08991205,727.22,727.12,6.01438]
[1609582239043,8.08991205,727.22,727.12,20.13968]
[1609582240339,8.08942439,727.21,727.12,20.13968]
[1609582240738,11.47442439,727.21,727.12,20.13968]
[1609582240940,2.7397,727.2,727.12,20.13968]
[1609582241540,11.47442439,727.21,727.12,20.13968]
[1609582241844,11.47442439,727.21,727.13,2.7251]
[1609582242342,3.385,727.21,727.13,2.7251]
[1609582242541,2.7625,727.2,727.13,2.7251]
[1609582246249,2.7625,727.2,727.12,20.13968]
[1609582246450,3.385,727.21,727.12,20.13968]
[1609582246850,6.01438,727.25,727.2,6.01438]
[1609582247451,2.7509,727.24,727.2,6.01438]
[1609582247749,6.9019,727.24,727.2,6.01438]
[1609582247953,6.9019,727.24,727.21,2.7383]
[1609582248150,4.151,727.24,727.2,6.01438]
[1609582249154,2.7902,727.23,727.21,2.7592]
[1609582249756,4.151,727.24,727.2,6.01438]
[1609582250555,4.151,727.24,727.23,87.6713]
[1609582250756,6.8928,727.24,727.23,90.4241]
[1609582251155,4.151,727.24,727.23,87.6713]
[1609582251355,4.151,727.24,727.2,6.01438]
[1609582251755,1.471,727.24,727.2,6.01438]
[1609582252756,14.11964323,727.48,727.2,6.01438]
[1609582253157,14.11964323,727.48,727.21,2.784]
[1609582253362,14.11964323,727.48,727.25,79.0629]
[1609582253757,6.01438,727.48,727.25,79.0629]
[1609582254359,6.01438,727.48,727.2,6.01438]
[1609582254560,9.70638,727.48,727.41,105.028]
[1609582254761,9.70638,727.48,727.4,6.01438]
[1609582255361,9.70638,727.48,727.47,79.8988]
[1609582256363,12.42478,727.48,727.47,79.8988]
[1609582256762,9.70638,727.48,727.47,79.8988]
[1609582257364,3.692,727.48,727.47,79.8988]
[1609582258765,6.4576,727.48,727.47,88.66238]
[1609582258964,3.692,727.48,727.47,85.91318]
[1609582259767,8.10691116,727.53,727.47,85.91318]
[1609582259967,8.10691116,727.53,727.47,88.62718]
[1609582260168,0.0052,727.52,727.47,88.62718]
[1609582260367,3.7592,727.52,727.47,88.62718]
[1609582261069,3.754,727.52,727.47,88.62718]
[1609582261469,3.754,727.52,727.47,8.72838]
[1609582261671,3.754,727.52,727.47,6.01438]
[1609582262271,2.7128,727.51,727.47,6.01438]
[1609582263371,2.7128,727.51,727.47,18.39428]
[1609582265072,3.754,727.52,727.47,18.39428]
[1609582265576,6.01438,727.6,727.47,18.39428]
[1609582265971,6.01438,727.6,727.48,2.7244]
[1609582266371,6.01438,727.6,727.47,18.39428]
[1609582266571,9.74838,727.6,727.47,18.39428]
[1609582267572,2.7699,727.59,727.48,2.7497]
[1609582267773,2.7435,727.58,727.48,2.7497]
[1609582269576,3.734,727.6,727.47,12.3799]
[1609582270475,3.734,727.6,727.48,2.7698]
[1609582270679,2.7806,727.59,727.48,2.7698]
[1609582270876,2.738,727.58,727.48,2.7698]
[1609582271279,3.734,727.6,727.47,12.3799]
[1609582271678,8.11464034,727.69,727.47,12.3799]
[1609582272177,2.7753,727.68,727.48,2.7409]
[1609582272378,6.9363,727.68,727.48,2.7409]
[1609582272579,8.11114059,727.67,727.48,2.7409]
[1609582272877,8.11114059,727.67,727.55,6.01438]
[1609582274581,4.161,727.68,727.55,6.01438]
[1609582274881,4.161,727.68,727.66,6.01438]
[1609582275481,6.8703,727.68,727.66,6.01438]
[1609582275884,6.8703,727.68,727.56,2.7172]
[1609582276882,6.8703,727.68,727.59,6.01438]
[1609582277085,6.8703,727.68,727.6,2.7113]
[1609582277283,4.161,727.68,727.59,6.01438]
[1609582277686,3.409,727.68,727.59,6.01438]
[1609582278184,2.7101,727.67,727.6,2.7118]
[1609582278387,3.409,727.68,727.59,6.01438]
[1609582279184,3.409,727.68,727.6,13.0867]
[1609582279787,2.7503,727.67,727.61,2.7429]
[1609582279988,3.409,727.68,727.6,13.0867]
[1609582280891,2.7203,727.67,727.61,2.7148]
[1609582282291,3.409,727.68,727.61,2.7148]
[1609582282491,3.409,727.68,727.6,13.0867]
[1609582282791,8.11235183,727.7,727.6,13.0867]
[1609582282992,3.671,727.68,727.6,13.0867]
[1609582283694,3.671,727.68,727.61,2.7374]
[1609582284295,2.7236,727.67,727.61,2.7374]
[1609582284794,3.671,727.68,727.6,13.0867]
[1609582285095,6.01438,727.61,727.6,13.0867]
[1609582285795,8.79958,727.61,727.6,2.7148]
[1609582286497,21.01438,727.61,726.99,3.998]
[1609582286697,21.01438,727.61,727.04,85.9704]
[1609582287097,6.01438,727.34,727.19,6.01438]
[1609582287297,9.61938,727.34,727.19,6.01438]
[1609582287497,9.61938,727.34,727.2,2.7793]
[1609582288299,2.7378,727.33,727.2,2.7793]
[1609582288500,9.61938,727.34,727.19,6.01438]
[1609582289503,2.7351,727.33,727.2,2.7188]
[1609582291104,2.7351,727.33,727.27,6.01438]
[1609582291506,9.61938,727.34,727.27,6.01438]
[1609582291507,3.605,727.34,727.27,6.01438]
[1609582292306,8.10591798,727.47,727.27,6.01438]
[1609582292705,2.7296,727.46,727.28,2.7707]
[1609582293013,8.10200174,727.42,727.28,2.7707]
[1609582293206,8.10200174,727.42,727.36,6.01438]
[1609582293412,8.10200174,727.42,727.37,2.724]
[1609582294412,7.6146,727.46,727.37,2.724]
[1609582298314,4.885,727.46,727.25,6.01438]
[1609582298714,3.611,727.46,727.25,6.01438]
[1609582299216,3.611,727.46,727.45,6.01438]
[1609582299415,6.3973,727.46,727.45,8.76168]
[1609582299815,6.3973,727.46,727.45,88.70738]
[1609582301817,3.611,727.46,727.45,85.96008]
[1609582303822,8.10568418,727.48,727.45,85.96008]
[1609582304023,8.10465078,727.5,727.45,85.96008]
[1609582305121,6.01438,727.7,727.45,85.96008]
[1609582305122,8.12202915,727.67,727.45,85.96008]
[1609582305321,8.12202915,727.67,727.66,6.01438]
[1609582305923,8.12202915,727.67,727.45,79.9457]
[1609582305924,8.12212955,727.69,727.45,79.9457]
[1609582307023,23.12212955,727.69,727.45,79.9457]
[1609582307229,6.01438,727.46,727.45,79.9457]
[1609582307428,10.86838,727.46,727.45,79.9457]
[1609582309637,4.854,727.46,727.45,79.9457]
[1609582311342,4.854,727.46,727.45,85.96008]
[1609582312340,8.11982795,727.66,727.45,85.96008]
[1609582313240,8.11982795,727.66,727.56,6.01438]
[1609582313441,6.01438,727.69,727.45,79.9457]
[1609582315242,6.01438,727.69,727.51,6.01438]
[1609582316843,8.12237779,727.71,727.51,6.01438]
[1609582317244,8.12237779,727.71,727.66,6.01438]
[1609582318046,8.12087013,727.74,727.66,6.01438]
[1609582318948,8.12037693,727.75,727.66,6.01438]
[1609582320150,8.12037693,727.75,727.66,20.03268]
[1609582322653,8.12076101,727.76,727.66,6.01438]
[1609582323056,8.12076101,727.76,727.75,80.3021]
[1609582323952,14.13757532,727.8,727.75,80.3021]
[1609582325355,6.01438,727.8,727.75,80.3021]
[1609582325553,8.12327899,727.81,727.75,80.3021]
[1609582326753,8.12405059,727.83,727.75,80.3021]
[1609582327354,8.12405059,727.83,727.77,6.01438]
[1609582328461,2.7454,727.82,727.77,6.01438]
[1609582328761,8.12405059,727.83,727.77,6.01438]
[1609582329663,6.01438,728.01,727.77,6.01438]
[1609582329664,8.12649958,727.87,727.77,6.01438]
[1609582331866,8.13063269,727.91,727.77,6.01438]
[1609582332667,8.13123768,727.9,727.77,6.01438]
[1609582332868,12.65823768,727.9,727.8,113.2167]
[1609582342082,5.69373312,727.82,727.8,113.2167]
[1609582343687,4.527,727.9,727.8,113.2167]
[1609582343688,5.69491941,727.85,727.8,113.2167]
[1609582345388,6.01438,727.84,727.8,113.2167]
[1609582349793,5.70279636,727.87,727.8,113.2167]
[1609582349992,5.70279636,727.87,727.77,6.01438]
[1609582350192,5.70279636,727.87,727.86,113.1146]
[1609582351598,5.70279636,727.87,727.86,119.12898]
[1609582353397,4.527,727.9,727.86,119.12898]
[1609582353597,5.70867841,727.99,727.86,119.12898]
[1609582355498,5.71043401,728.05,727.86,119.12898]
[1609582355699,5.71043401,728.05,728.04,6.01438]
[1609582356497,5.71043401,728.05,728.04,21.78018]
[1609582357401,8.15460305,728.11,728.04,21.78018]
[1609582358198,8.15460305,728.11,728.04,6.01438]
[1609582358398,8.15461313,728.12,728.04,6.01438]
[1609582358899,8.15461313,728.12,727.78,103.5326]
[1609582359100,11.60061313,728.12,727.78,103.5326]
[1609582359500,8.15119953,728.08,727.78,103.5326]
[1609582359700,6.01438,728.04,728.0,6.01438]
[1609582361702,6.01438,728.04,728.01,84.3493]
[1609582365709,6.01438,728.04,728.0,6.01438]
[1609582367009,6.01438,728.04,728.01,15.943]
[1609582367209,6.01438,728.04,728.0,6.01438]
[1609582367408,6.01438,728.04,728.03,93.3225]
[1609582379633,11.72183683,728.04,728.03,93.3225]
[1609582382135,6.01438,728.04,728.03,93.3225]
[1609582382535,6.01438,728.04,728.0,6.01438]
[1609582383336,6.01438,728.04,727.86,85.2596]
[1609582383536,6.01438,728.04,727.41,19.029]
[1609582383736,6.01438,728.04,727.62,98.7049]
[1609582383937,6.01438,727.83,727.62,98.7049]
[1609582384136,10.79838,727.83,727.62,98.7049]
[1609582385936,10.79838,727.83,727.71,6.01438]
[1609582387139,10.79838,727.83,727.62,98.7049]
[1609582387939,6.01438,727.65,727.62,98.7049]
[1609582388140,9.42038,727.65,727.62,98.7049]
[1609582389442,3.406,727.65,727.62,98.7049]
[1609582393251,4.668,727.65,727.62,113.7049]
[1609582393650,4.668,727.65,727.62,98.7049]
[1609582394455,4.668,727.65,727.59,6.01438]
[1609582398563,4.784,727.83,727.59,6.01438]
[1609582398761,5.70227321,727.85,727.59,6.01438]
[1609582400262,5.70227321,727.85,727.62,12.422]
[1609582400462,5.70227321,727.85,727.76,6.01438]
[1609582402665,6.01438,727.86,727.76,6.01438]
[1609582402666,5.70618906,727.84,727.76,6.01438]
[1609582402865,8.97318906,727.84,727.76,6.01438]
[1609582404170,8.97318906,727.84,727.78,15.3949]
[1609582405368,5.70608334,727.83,727.78,15.3949]
[1609582406369,3.267,727.84,727.78,15.3949]
[1609582406370,8.97368475,727.84,727.78,15.3949]
[1609582411075,5.70586415,727.82,727.78,15.3949]
[1609582411476,5.70586415,727.82,727.67,6.01438]
[1609582411676,5.70586415,727.82,727.39,101.0939]
[1609582412477,6.01438,727.56,727.39,107.10828]
[1609582412677,10.25538,727.56,727.39,107.10828]
[1609582412877,10.25538,727.56,727.39,101.0939]
[1609582414579,6.01438,727.48,727.4,6.01438]
[1609582416181,6.01438,727.48,726.93,104.9831]
[1609582416382,21.01438,727.48,726.93,104.9831]
[1609582416580,21.01438,727.48,727.23,6.01438]
[1609582416581,6.01438,727.28,727.23,6.01438]
[1609582416781,9.38738,727.28,727.23,6.01438]
[1609582420596,9.38738,727.28,727.09,0.6]
[1609582422593,6.01438,727.18,727.13,6.01438]
[1609582422992,3.373,727.28,727.13,6.01438]
[1609582423294,93.8172,727.51,727.13,6.01438]
[1609582424493,6.01438,727.25,727.13,6.01438]
[1609582424693,9.77138,727.25,727.13,6.01438]
[1609582426601,9.77138,727.25,727.23,6.01438]
[1609582427903,9.77138,727.25,727.09,0.6]
[1609582428605,9.77138,727.25,727.14,6.01438]
[1609582430606,6.01438,727.15,727.14,6.01438]
[1609582432509,6.01438,727.15,727.09,0.6]
[1609582434311,3.757,727.25,727.11,90.6228]
[1609582434511,5.69032629,727.39,727.11,90.6228]
[1609582434711,6.01438,727.27,727.21,6.01438]
[1609582434912,9.59438,727.27,727.21,6.01438]
[1609582435513,9.59438,727.27,727.11,90.6228]
[1609582435714,9.59438,727.27,727.09,0.6]
[1609582436618,9.59438,727.27,727.18,6.01438]
[1609582441924,9.59438,727.27,727.09,0.6]
[1609582442827,9.59438,727.27,727.17,6.01438]
[1609582443628,3.58,727.27,727.17,6.01438]
[1609582444228,5.68618726,727.44,727.17,6.01438]
[1609582444832,5.68618726,727.44,727.39,6.01438]
[1609582445433,5.68706466,727.46,727.39,6.01438]
[1609582445932,5.68706466,727.46,727.14,95.6656]
[1609582446734,6.01438,727.38,727.35,6.01438]
[1609582447233,9.23738,727.38,727.35,6.01438]
[1609582451544,9.23738,727.38,727.14,95.6656]
[1609582452841,6.01438,727.28,727.27,6.01438]
[1609582458449,6.01438,727.28,727.14,95.6656]
[1609582458849,6.01438,727.28,727.26,6.01438]
[1609582459346,6.01438,727.28,727.14,95.6656]
[1609582459546,6.01438,727.28,727.09,0.6]
[1609582460846,3.223,727.38,727.09,0.6]
[1609582460847,6.01438,727.15,727.12,6.01438]
[1609582461246,9.44438,727.15,727.12,6.01438]
[1609582463146,9.44438,727.15,727.09,0.6]
[1609582467050,105.6373,727.1,727.09,0.6]
[1609582468657,119.04524286,727.1,727.09,0.6]
[1609582468864,134.04524286,727.1,727.09,0.6]
[1609582469067,28.40794286,727.1,726.54,6.01438]
[1609582469463,28.40794286,727.1,726.42,104.7845]
[1609582469663,13.40794286,727.1,726.42,104.7845]
[1609582469867,13.40794286,727.1,726.76,0.6]
[1609582471064,5.66472668,726.98,726.76,0.6]
[1609582471264,11.1245,726.87,726.76,0.6]
[1609582471865,6.01438,726.77,726.76,0.6]
[1609582472065,23.14028,726.77,726.76,0.6]
[1609582472665,23.14028,726.77,726.3,89.7241]
[1609582473766,6.01438,726.33,726.3,89.7241]
[1609582473965,10.55738,726.33,726.3,89.7241]
[1609582474165,10.55738,726.33,726.13,6.01438]
[1609582477668,10.55738,726.33,725.87,114.9129]
[1609582477869,6.01438,726.19,725.96,6.01438]
[1609582480071,4.543,726.33,725.96,6.01438]
[1609582480271,79.2052,726.42,725.96,6.01438]
[1609582481873,6.01438,726.25,726.04,6.01438]
[1609582482075,9.24138,726.25,726.04,6.01438]
[1609582482278,3.227,726.25,726.1,113.4812]
[1609582483981,3.227,726.25,726.24,6.01438]
[1609582484576,3.227,726.25,726.1,113.4812]
[1609582485878,3.227,726.25,726.24,6.01438]
[1609582487281,6.01438,726.49,726.24,6.01438]
[1609582495994,6.01438,726.49,726.35,6.01438]
[1609582498997,3.564,726.77,726.35,6.01438]
[1609582499198,5.65029035,726.79,726.48,112.7923]
[1609582500000,6.01438,726.77,726.74,6.01438]
[1609582500200,10.69138,726.77,726.48,112.7923]
[1609582500400,4.677,726.77,726.48,112.7923]
[1609582502001,6.01438,726.72,726.66,6.01438]
[1609582503503,6.01438,726.72,726.48,112.7923]
[1609582505406,6.01438,726.72,726.48,112.5923]
[1609582506007,6.01438,726.72,726.66,6.01438]
[1609582506412,4.677,726.77,726.66,17.59818]
[1609582506610,5.65571799,726.96,726.66,6.01438]
[1609582506808,5.65571799,726.96,726.81,101.2484]
[1609582507308,5.65571799,726.96,726.81,101.0484]
[1609582508010,5.65571799,726.96,726.94,6.01438]
[1609582509115,5.65571799,726.96,726.94,5.81438]
[1609582509616,5.65571799,726.96,726.93,87.7328]
[1609582510619,3.698,726.98,726.29,15.0]
[1609582510817,6.01438,727.07,726.39,99.9371]
[1609582511017,0.2,726.93,726.39,99.9371]
[1609582511217,3.989,726.93,726.39,99.9371]
[1609582512117,3.989,726.93,726.86,6.01438]
[1609582514220,6.01438,726.88,726.86,6.01438]
[1609582516727,3.989,726.93,726.86,6.01438]
[1609582531042,3.989,726.93,726.92,78.6773]
[1609582536447,3.989,726.93,726.86,6.01438]
[1609582544155,3.989,726.93,726.92,100.3681]
[1609582545557,3.989,726.93,726.86,6.01438]
[1609582554167,3.989,726.93,726.92,81.5976]
[1609582555668,3.989,726.93,726.86,6.01438]
[1609582556069,3.989,726.93,726.59,93.3411]
[1609582556468,3.989,726.93,726.91,6.01438]
[1609582562777,3.989,726.93,726.92,82.5943]
[1609582565684,3.989,726.93,726.91,6.01438]
[1609582575496,3.989,726.93,726.91,21.01438]
[1609582575697,1.999,727.15,726.91,21.01438]
[1609582575903,5.66892095,727.36,727.12,92.7479]
[1609582576705,5.66892095,727.36,727.35,6.01438]
[1609582578808,5.66892095,727.36,727.35,20.41428]
[1609582581013,21.49861867,727.43,727.35,20.41428]
[1609582581014,5.6649402,727.37,727.35,20.41428]
[1609582582317,0.6,727.36,727.35,20.41428]
[1609582582515,5.477,727.36,727.35,20.41428]
[1609582583115,5.477,727.36,727.35,6.01438]
[1609582588623,8.1993,727.36,727.35,6.01438]
[1609582590125,7.9488,727.36,727.35,6.01438]
[1609582591225,5.2265,727.36,727.35,6.01438]
[1609582592225,7.9956,727.36,727.35,6.01438]
[1609582592426,3.4165,727.36,727.35,6.01438]
[1609582592627,0.6653,727.36,727.35,6.01438]
[1609582592827,0.3144,727.36,727.35,6.01438]
[1609582593227,2.1226,727.51,727.35,6.01438]
[1609582594528,2.7306,727.5,727.35,6.01438]
[1609582594729,2.7306,727.5,727.49,6.01438]
[1609582594928,2.7306,727.5,727.49,17.86208]
[1609582595930,2.7306,727.5,727.49,20.65068]
[1609582596930,2.1226,727.51,727.49,17.86208]
[1609582597130,5.68256467,727.81,727.49,17.86208]
[1609582598033,5.68256467,727.81,727.5,2.7436]
[1609582598834,5.68256467,727.81,727.8,6.01438]
[1609582600235,5.68256467,727.81,727.8,8.77138]
[1609582600736,8.43506467,727.81,727.8,8.77138]
[1609582601836,2.7525,727.81,727.8,109.64278]
[1609582602537,8.1135381,727.87,727.8,109.64278]
[1609582603141,5.68696335,727.93,727.8,109.64278]
[1609582603743,2.7282,727.92,727.8,109.64278]
[1609582604140,7.4902,727.92,727.8,109.64278]
[1609582604341,7.4902,727.92,727.81,2.7212]
[1609582604741,7.4902,727.92,727.8,109.64278]
[1609582604943,4.762,727.92,727.91,6.01438]
[1609582605141,4.762,727.92,727.91,20.92628]
[1609582605945,7.4693,727.92,727.91,23.68228]
[1609582606445,6.4122,727.92,727.91,23.68228]
[1609582606646,3.7049,727.92,727.91,20.92628]
[1609582607644,6.4768,727.92,727.91,23.63858]
[1609582608248,2.6339,727.92,727.91,20.92628]
[1609582609249,5.68819316,728.1,727.91,20.92628]
[1609582609649,5.69098623,728.17,727.91,20.92628]
[1609582610851,5.69311139,728.22,728.16,6.01438]
[1609582611656,5.69423648,728.25,728.22,85.4236]
[1609582611853,5.69423648,728.25,728.16,6.01438]
[1609582612053,9.20323648,728.25,728.16,6.01438]
[1609582612255,9.20323648,728.25,728.24,89.1708]
[1609582612654,8.70283648,728.25,728.16,6.01438]
[1609582612856,8.70283648,728.25,728.24,6.01438]
[1609582613456,8.70283648,728.25,728.24,8.72168]
[1609582613657,11.44003648,728.25,728.24,8.72168]
[1609582614860,8.70283648,728.25,728.24,6.01438]
[1609582616462,11.46253648,728.25,728.24,8.78728]
[1609582616864,8.70283648,728.25,728.24,6.01438]
[1609582620573,8.70283648,728.25,728.24,104.43438]
[1609582621172,8.70283648,728.25,728.24,107.16878]
[1609582622270,8.70283648,728.25,728.24,8.74878]
[1609582622969,8.70283648,728.25,728.24,6.01438]
[1609582623770,11.45103648,728.25,728.24,6.01438]
[1609582623969,11.45103648,728.25,728.24,8.79828]
[1609582624169,8.70283648,728.25,728.24,6.01438]
[1609582630580,3.509,728.25,728.24,6.01438]
[1609582630779,8.12739934,728.28,728.24,6.01438]
[1609582632385,5.69717903,728.27,728.24,6.01438]
[1609582632784,9.80217903,728.27,728.24,6.01438]
[1609582633185,5.69665142,728.26,728.24,6.01438]
[1609582636789,5.69785773,728.25,728.24,6.01438]
[1609582639594,4.105,728.27,728.24,6.01438]
[1609582639794,8.13604384,728.3,728.24,6.01438]
[1609582640994,8.13608299,728.29,728.24,6.01438]
[1609582641192,11.87308299,728.29,728.24,6.01438]
[1609582642293,3.737,728.29,728.24,6.01438]
[1609582643896,5.70492967,728.25,728.24,6.01438]
[1609582645800,5.70568477,728.27,728.24,6.01438]
[1609582652705,5.70715538,728.28,728.24,6.01438]
[1609582654107,9.4451929,728.29,728.24,6.01438]
[1609582655507,5.70857215,728.28,728.24,6.01438]
[1609582656510,3.737,728.29,728.24,6.01438]
[1609582656710,5.70835594,728.3,728.24,6.01438]
[1609582658213,5.70785768,728.29,728.24,6.01438]
[1609582658612,9.59885768,728.29,728.24,6.01438]
[1609582659111,3.891,728.29,728.24,6.01438]
[1609582663621,5.70397414,728.31,728.24,6.01438]
[1609582667124,5.71278163,728.3,728.24,106.54618]
[1609582667323,9.50178163,728.3,728.24,106.54618]
[1609582668223,3.789,728.3,728.24,106.54618]
[1609582668623,3.789,728.3,728.24,6.01438]
[1609582671028,9.50347455,728.3,728.24,6.01438]
[1609582671228,115.4098,728.25,728.24,6.01438]
[1609582671429,121.42418,728.25,728.12,6.01438]
[1609582671830,121.22418,728.25,728.12,6.01438]
[1609582672029,6.01438,728.25,728.12,6.01438]
[1609582672233,5.43568,728.25,728.12,6.01438]
[1609582672931,2.7243,728.24,728.12,6.01438]
[1609582673133,2.7457,728.23,728.12,6.01438]
[1609582673334,5.71267396,728.15,728.12,6.01438]
[1609582673533,6.01438,728.14,728.12,6.01438]
[1609582674634,8.73108,728.14,728.12,6.01438]
[1609582674834,8.73108,728.14,728.12,8.75668]
[1609582675835,6.01438,728.14,728.12,6.01438]
[1609582676235,11.72700101,728.14,728.12,6.01438]
[1609582676834,11.72700101,728.14,728.12,8.75058]
[1609582677136,11.72700101,728.14,728.12,6.01438]
[1609582677836,8.48482101,728.14,728.12,6.01438]
[1609582678037,2.7722,728.14,728.12,6.01438]
[1609582678235,2.7722,728.14,728.12,8.79588]
[1609582680741,4.516,728.15,728.12,8.79588]
[1609582680938,5.71568392,728.25,728.12,6.01438]
[1609582681537,5.71568392,728.25,728.24,6.01438]
[1609582681738,2.7344,728.25,728.24,8.76668]
[1609582682838,5.71762542,728.29,728.24,6.01438]
[1609582683943,2.7057,728.28,728.25,2.7487]
[1609582686854,3.789,728.3,728.24,6.01438]
[1609582687253,5.71285281,728.32,728.24,6.01438]
[1609582687754,5.71311674,728.33,728.24,6.01438]
[1609582691764,6.01438,728.32,728.24,6.01438]
[1609582691965,9.05838,728.32,728.24,6.01438]
[1609582693464,3.044,728.32,728.24,6.01438]
[1609582697070,5.70981406,728.3,728.24,6.01438]
[1609582697268,8.83081406,728.3,728.24,6.01438]
[1609582698171,3.121,728.3,728.24,6.01438]
[1609582702576,6.01438,728.45,728.24,6.01438]
[1609582702577,5.71132704,728.33,728.24,6.01438]
[1609582703875,5.71132704,728.33,728.32,6.01438]
[1609582704479,8.15411244,728.39,728.32,6.01438]
[1609582705878,5.71197885,728.34,728.32,6.01438]
[1609582706079,9.14997885,728.34,728.32,6.01438]
[1609582706381,3.438,728.34,728.32,6.01438]
[1609582707984,6.01438,728.33,728.32,6.01438]
[1609582712992,16.82801507,728.34,728.32,6.01438]
[1609582713190,16.82801507,728.34,728.32,82.93388]
[1609582713591,3.438,728.34,728.32,82.93388]
[1609582713990,11.40521233,728.38,728.32,82.93388]
[1609582715393,11.40521233,728.38,728.32,6.01438]
[1609582717093,5.71331392,728.41,728.32,6.01438]
[1609582717293,5.71331392,728.41,728.32,5.81438]
[1609582718095,5.71331392,728.41,728.4,6.01438]
[1609582718694,5.71445221,728.43,728.4,6.01438]
[1609582719194,5.71445221,728.43,728.4,5.81438]
[1609582719695,5.71473625,728.44,728.4,5.81438]
[1609582721097,5.71473625,728.44,728.4,5.61438]
[1609582722899,5.71473625,728.44,728.4,5.41438]
[1609582723803,5.71598344,728.45,728.4,5.41438]
[1609582725304,5.71630611,728.48,728.4,5.41438]
[1609582726404,5.71666219,728.49,728.4,5.41438]
[1609582727606,5.71793927,728.5,728.4,5.41438]
[1609582728207,5.71793927,728.5,728.49,6.01438]
[1609582728910,5.71793034,728.51,728.49,6.01438]
[1609582730009,5.71849214,728.52,728.49,6.01438]
[1609582730909,5.71849214,728.52,728.5,13.5898]
[1609582731112,5.71849214,728.52,728.49,6.01438]
[1609582731310,10.43449214,728.52,728.49,6.01438]
[1609582731512,10.43449214,728.52,728.51,95.1704]
[1609582733212,4.716,728.52,728.51,95.1704]
[1609582736619,5.72124805,728.59,728.51,95.1704]
[1609582737520,5.72096417,728.6,728.51,95.1704]
[1609582738420,5.72096417,728.6,728.59,6.01438]
[1609582738621,5.7209274,728.61,728.59,6.01438]
[1609582739826,5.72272949,728.65,728.59,6.01438]
[1609582741224,5.72202305,728.64,728.59,6.01438]